fUSD/lending_fUSD_20260606
["ID","MTS","AMOUNT","RATE_DAILY","PERIOD"]
[424235413,1780678255000,-302.53429542,0.0003013,2]
[424235368,1780678255000,-517.25036031,0.00030014,2]
[424235399,1780678255000,-417.4229384,0.00030066,2]
[424235391,1780678255000,-392.10370028,0.00030031,2]
[424235401,1780678255000,-504.8996757,0.00030083,2]
[424235387,1780678255000,-601.72131798,0.00030031,2]
[424235390,1780678255000,-588.04746679,0.00030031,2]
[424235364,1780678255000,-165.0533866,0.00030014,2]
[424235370,1780678255000,-627.26737328,0.00030014,2]
[424235362,1780678255000,-435.4438141,0.00030014,2]
[424235361,1780678255000,-540.0375935,0.00030014,2]
[424235363,1780678255000,-534.79718628,0.00030014,2]
[424235380,1780678255000,-518.47161074,0.00030025,2]
[424235379,1780678255000,-378.25703624,0.00030025,2]
[424235381,1780678255000,-477.96039919,0.00030025,2]
[424235383,1780678255000,-461.19425055,0.00030025,2]
[424235382,1780678255000,-341.18317123,0.00030025,2]
[424235378,1780678255000,-228.38145185,0.00030015,2]
[424235384,1780678255000,-513.67010376,0.00030025,2]
[424235373,1780678255000,-533.25407801,0.00030015,2]
[424235371,1780678255000,-494.24607033,0.00030015,2]
[424235374,1780678255000,-502.36151964,0.00030015,2]
[424235377,1780678255000,-413.97077049,0.00030015,2]
[424235376,1780678255000,-366.53473931,0.00030015,2]
[424235372,1780678255000,-201.10486381,0.00030015,2]
[424235388,1780678255000,-309.77045782,0.00030031,2]
[424235386,1780678255000,-179.14172686,0.00030031,2]
[424235385,1780678255000,-610.56077583,0.00030031,2]
[424235375,1780678255000,-186.5413932,0.00030015,2]
[424235448,1780678256000,-360.414396,0.0003013,7]
[424235442,1780678256000,-314.504776,0.0003013,7]
[424235458,1780678256000,-897.541149,0.0003013,7]
[424235447,1780678256000,-657.431215,0.0003013,7]
[424235450,1780678256000,-657.431215,0.0003013,7]
[424235446,1780678256000,-360.414396,0.0003013,7]
[424235454,1780678256000,-151.0,0.0003013,7]
[424235457,1780678256000,-263.364272,0.0003013,7]
[424235455,1780678256000,-151.0,0.0003013,7]
[424235453,1780678256000,-151.0,0.0003013,7]
[424235449,1780678256000,-657.431215,0.0003013,7]
[424235456,1780678256000,-897.541149,0.0003013,7]
[424235452,1780678256000,-151.0,0.0003013,7]
[424235465,1780678256000,-1445.79743,0.0003013,7]
[424235461,1780678256000,-991.41694,0.0003013,7]
[424235459,1780678256000,-897.541149,0.0003013,7]
[424235460,1780678256000,-897.541149,0.0003013,7]
[424235462,1780678256000,-991.41694,0.0003013,7]
[424235467,1780678256000,-1445.79743,0.0003013,7]
[424235464,1780678256000,-991.41694,0.0003013,7]
[424235468,1780678256000,-1445.79743,0.0003013,7]
[424235463,1780678256000,-991.41694,0.0003013,7]
[424235469,1780678256000,-151.0,0.0003013,7]
[424235470,1780678256000,-151.0,0.0003013,7]
[424235480,1780678256000,-1024.56049,0.0003013,7]
[424235482,1780678256000,-1024.56049,0.0003013,7]
[424235445,1780678256000,-360.414396,0.0003013,7]
[424235451,1780678256000,-657.431215,0.0003013,7]
[424235440,1780678256000,-314.504776,0.0003013,7]
[424235419,1780678256000,-151.0,0.0003013,7]
[424235443,1780678256000,-314.504776,0.0003013,7]
[424235416,1780678256000,-151.0,0.0003013,7]
[424235420,1780678256000,-151.0,0.0003013,7]
[424235417,1780678256000,-151.0,0.0003013,7]
[424235418,1780678256000,-151.0,0.0003013,7]
[424235481,1780678256000,-5206.773793,0.0003013,7]
[424235415,1780678256000,-1918.15308054,0.0003013,2]
[424235414,1780678256000,-3107067.63474946,0.0003013,7]
[424235422,1780678256000,-151.0,0.0003013,7]
[424235432,1780678256000,-211.073153,0.0003013,7]
[424235421,1780678256000,-151.0,0.0003013,7]
[424235424,1780678256000,-151.0,0.0003013,7]
[424235423,1780678256000,-151.0,0.0003013,7]
[424235431,1780678256000,-185.576005,0.0003013,7]
[424235425,1780678256000,-151.0,0.0003013,7]
[424235429,1780678256000,-185.576005,0.0003013,7]
[424235430,1780678256000,-185.576005,0.0003013,7]
[424235426,1780678256000,-151.0,0.0003013,7]
[424235427,1780678256000,-206.573525,0.0003013,7]
[424235428,1780678256000,-185.576005,0.0003013,7]
[424235435,1780678256000,-211.073153,0.0003013,7]
[424235433,1780678256000,-211.073153,0.0003013,7]
[424235438,1780678256000,-3001.961721,0.0003013,7]
[424235434,1780678256000,-211.073153,0.0003013,7]
[424235437,1780678256000,-3001.961721,0.0003013,7]
[424235436,1780678256000,-3001.961721,0.0003013,7]
[424235441,1780678256000,-314.504776,0.0003013,7]
[424235439,1780678256000,-3001.961721,0.0003013,7]
[424235444,1780678256000,-360.414396,0.0003013,7]
[424235483,1780678256000,-151.0,0.0003013,7]
[424235466,1780678256000,-1445.79743,0.0003013,7]
[424235476,1780678256000,-1024.56049,0.0003013,7]
[424235498,1780678256000,-2500.0,0.00030137,120]
[424235510,1780678256000,-158.74,0.00030137,2]
[424235513,1780678256000,-1500.0,0.00030137,15]
[424235512,1780678256000,-939.65314336,0.00030137,120]
[424235511,1780678256000,-1123.06286728,0.00030137,120]
[424235515,1780678256000,-1500.0,0.00030137,15]
[424235519,1780678256000,-510.97,0.00030137,2]
[424235520,1780678256000,-200.0,0.00030137,2]
[424235514,1780678256000,-1500.0,0.00030137,15]
[424235521,1780678256000,-200.0,0.00030137,2]
[424235517,1780678256000,-510.97,0.00030137,2]
[424235518,1780678256000,-510.97,0.00030137,2]
[424235522,1780678256000,-1000.0,0.00030137,14]
[424235508,1780678256000,-158.74,0.00030137,2]
[424235525,1780678256000,-150.0,0.00030137,2]
[424235527,1780678256000,-150.0,0.00030137,2]
[424235526,1780678256000,-150.0,0.00030137,2]
[424235533,1780678256000,-150.0,0.00030137,2]
[424235532,1780678256000,-150.0,0.00030137,2]
[424235528,1780678256000,-150.0,0.00030137,2]
[424235529,1780678256000,-150.0,0.00030137,2]
[424235523,1780678256000,-200.0,0.00030137,2]
[424235530,1780678256000,-150.0,0.00030137,2]
[424235531,1780678256000,-150.0,0.00030137,2]
[424235536,1780678256000,-150.0,0.00030137,2]
[424235535,1780678256000,-150.0,0.00030137,2]
[424235534,1780678256000,-150.0,0.00030137,2]
[424235471,1780678256000,-151.0,0.0003013,7]
[424235524,1780678256000,-150.0,0.00030137,2]
[424235509,1780678256000,-158.74,0.00030137,2]
[424235516,1780678256000,-317.13048338,0.00030137,2]
[424235506,1780678256000,-156.57,0.00030137,2]
[424235473,1780678256000,-151.0,0.0003013,7]
[424235507,1780678256000,-156.56333333,0.00030137,30]
[424235475,1780678256000,-5206.773793,0.0003013,7]
[424235472,1780678256000,-151.0,0.0003013,7]
[424235479,1780678256000,-5206.773793,0.0003013,7]
[424235477,1780678256000,-5206.773793,0.0003013,7]
[424235474,1780678256000,-151.0,0.0003013,7]
[424235484,1780678256000,-151.0,0.0003013,7]
[424235490,1780678256000,-1051.7,0.00030137,2]
[424235485,1780678256000,-151.0,0.0003013,7]
[424235492,1780678256000,-152.19,0.00030137,13]
[424235491,1780678256000,-285.03,0.00030137,2]
[424235486,1780678256000,-151.0,0.0003013,7]
[424235487,1780678256000,-151.0,0.0003013,7]
[424235478,1780678256000,-1024.56049,0.0003013,7]
[424235493,1780678256000,-152.19,0.00030137,13]
[424235494,1780678256000,-1000.0,0.00030137,120]
[424235505,1780678256000,-210.83079115,0.00030137,2]
[424235502,1780678256000,-250.0,0.00030137,2]
[424235503,1780678256000,-250.0,0.00030137,2]
[424235500,1780678256000,-150.0,0.00030137,2]
[424235501,1780678256000,-250.0,0.00030137,2]
[424235504,1780678256000,-250.0,0.00030137,2]
[424235497,1780678256000,-558.95987661,0.00030137,2]
[424235489,1780678256000,-187.74,0.00030137,120]
[424235488,1780678256000,-151.0,0.00030134,7]
[424235496,1780678256000,-372.63991774,0.00030137,2]
[424235495,1780678256000,-186.31995887,0.00030137,2]
[424235499,1780678256000,-1000.0,0.00030137,120]
[424235578,1780678257000,-4124.0,0.00030457,30]
[424235576,1780678257000,-1045.0,0.00030457,30]
[424235580,1780678257000,-934.0,0.00030462,30]
[424235577,1780678257000,-630.0,0.00030457,30]
[424235563,1780678257000,-350.0,0.00030372,16]
[424235579,1780678257000,-2635.35,0.00030461,7]
[424235575,1780678257000,-200.0,0.00030438,2]
[424235573,1780678257000,-200.0,0.00030438,2]
[424235572,1780678257000,-180.79,0.00030411,120]
[424235574,1780678257000,-200.0,0.00030438,2]
[424235581,1780678257000,-1324.0,0.00030462,30]
[424235564,1780678257000,-4085.0,0.00030388,5]
[424235582,1780678257000,-680.0,0.00030462,30]
[424235583,1780678257000,-3251.0,0.00030462,30]
[424235587,1780678257000,-15000.0,0.00030561,2]
[424235586,1780678257000,-553.5065089,0.00030547,2]
[424235594,1780678257000,-456.23406909,0.00030597,2]
[424235595,1780678257000,-668.11513217,0.00030597,2]
[424235592,1780678257000,-160.43311238,0.00030597,2]
[424235597,1780678257000,-212.94586999,0.00030597,2]
[424235585,1780678257000,-368.21224958,0.00030485,2]
[424235590,1780678257000,-435.11333649,0.00030597,2]
[424235589,1780678257000,-707.12479118,0.00030584,2]
[424235596,1780678257000,-442.93396391,0.00030597,2]
[424235588,1780678257000,-456.05140964,0.00030584,2]
[424235591,1780678257000,-346.90103295,0.00030597,2]
[424235593,1780678257000,-193.40856996,0.00030597,2]
[424235565,1780678257000,-3405.0,0.00030388,5]
[424235584,1780678257000,-3253.0,0.00030462,30]
[424235568,1780678257000,-3960.0,0.00030408,30]
[424235545,1780678257000,-253.13,0.000302,2]
[424235566,1780678257000,-553.5065089,0.00030389,2]
[424235598,1780678257000,-584.6861633,0.00030597,2]
[424235540,1780678257000,-150.0,0.00030137,2]
[424235539,1780678257000,-150.0,0.00030137,2]
[424235538,1780678257000,-150.0,0.00030137,2]
[424235542,1780678257000,-8027.84329922,0.0003015,2]
[424235537,1780678257000,-150.0,0.00030137,2]
[424235543,1780678257000,-8027.84329922,0.00030168,2]
[424235544,1780678257000,-15818.19369136,0.000302,2]
[424235541,1780678257000,-248.73260726,0.00030137,2]
[424235546,1780678257000,-990.48,0.000302,2]
[424235549,1780678257000,-193.812635,0.000302,4]
[424235556,1780678257000,-4510.5,0.00030239,2]
[424235551,1780678257000,-1079.65,0.000302,30]
[424235550,1780678257000,-303.832632,0.000302,6]
[424235558,1780678257000,-504.8996757,0.00030287,2]
[424235557,1780678257000,-8027.84329922,0.00030272,2]
[424235548,1780678257000,-1360.45,0.000302,7]
[424235547,1780678257000,-1390.8,0.000302,7]
[424235552,1780678257000,-162.607021,0.000302,2]
[424235553,1780678257000,-150.0,0.00030206,2]
[424235554,1780678257000,-200.0,0.0003021,2]
[424235555,1780678257000,-8027.84329922,0.00030215,2]
[424235560,1780678257000,-11578.43,0.00030317,7]
[424235559,1780678257000,-623.0,0.00030303,11]
[424235570,1780678257000,-2358.0,0.00030408,30]
[424235571,1780678257000,-570.0,0.00030408,30]
[424235562,1780678257000,-179.97120458,0.00030362,2]
[424235561,1780678257000,-26933.0,0.00030318,2]
[424235567,1780678257000,-741.0,0.00030408,30]
[424235569,1780678257000,-1116.0,0.00030408,30]
[424235600,1780678257000,-157.68801761,0.00030597,2]
[424235658,1780678257000,-836.35649771,0.00030597,2]
[424235599,1780678257000,-150.51900411,0.00030597,2]
[424235633,1780678257000,-665.23520646,0.00030597,2]
[424235634,1780678257000,-676.37671244,0.00030597,2]
[424235637,1780678257000,-819.34787457,0.00030597,2]
[424235638,1780678257000,-669.8141459,0.00030597,2]
[424235649,1780678257000,-653.16572114,0.00030597,2]
[424235650,1780678257000,-713.06291504,0.00030597,2]
[424235647,1780678257000,-405.48865826,0.00030597,2]
[424235648,1780678257000,-720.05012467,0.00030597,2]
[424235641,1780678257000,-583.25360704,0.00030597,2]
[424235644,1780678257000,-678.48686438,0.00030597,2]
[424235643,1780678257000,-530.81095139,0.00030597,2]
[424235639,1780678257000,-503.17946442,0.00030597,2]
[424235640,1780678257000,-406.56913496,0.00030597,2]
[424235645,1780678257000,-617.04627578,0.00030597,2]
[424235646,1780678257000,-599.62667407,0.00030597,2]
[424235642,1780678257000,-746.59215272,0.00030597,2]
[424235651,1780678257000,-699.85109958,0.00030597,2]
[424235655,1780678257000,-154.86804363,0.00030597,2]
[424235654,1780678257000,-727.08748689,0.00030597,2]
[424235653,1780678257000,-677.18991488,0.00030597,2]
[424235652,1780678257000,-282.90128703,0.00030597,2]
[424235661,1780678257000,-402.20972761,0.00030597,2]
[424235662,1780678257000,-711.00543734,0.00030597,2]
[424235660,1780678257000,-658.99476044,0.00030597,2]
[424235656,1780678257000,-689.66714708,0.00030597,2]
[424235657,1780678257000,-547.17257134,0.00030597,2]
[424235659,1780678257000,-330.10677321,0.00030597,2]
[424235601,1780678257000,-515.46193697,0.00030597,2]
[424235663,1780678257000,-669.81535953,0.00030598,2]
[424235632,1780678257000,-1385.03011854,0.00030597,2]
[424235636,1780678257000,-1267.68783109,0.00030597,2]
[424235664,1780678257000,-373.08278641,0.00030598,2]
[424235627,1780678257000,-169.02422643,0.00030597,2]
[424235628,1780678257000,-651.20681823,0.00030597,2]
[424235610,1780678257000,-178.28967843,0.00030597,2]
[424235602,1780678257000,-444.61150977,0.00030597,2]
[424235603,1780678257000,-658.29217513,0.00030597,2]
[424235605,1780678257000,-624.16551028,0.00030597,2]
[424235606,1780678257000,-349.28960793,0.00030597,2]
[424235608,1780678257000,-754.58074191,0.00030597,2]
[424235607,1780678257000,-861.57135057,0.00030597,2]
[424235604,1780678257000,-460.13773585,0.00030597,2]
[424235612,1780678257000,-1390.61631358,0.00030597,2]
[424235622,1780678257000,-308.95544412,0.00030597,2]
[424235623,1780678257000,-170.95079609,0.00030597,2]
[424235611,1780678257000,-168.98315568,0.00030597,2]
[424235621,1780678257000,-486.66674875,0.00030597,2]
[424235609,1780678257000,-168.06279881,0.00030597,2]
[424235614,1780678257000,-563.10489353,0.00030597,2]
[424235616,1780678257000,-427.39977061,0.00030597,2]
[424235630,1780678257000,-536.04726214,0.00030597,2]
[424235625,1780678257000,-165.70335479,0.00030597,2]
[424235629,1780678257000,-315.65352557,0.00030597,2]
[424235635,1780678257000,-1602.45839248,0.00030597,2]
[424235626,1780678257000,-326.49332156,0.00030597,2]
[424235624,1780678257000,-430.24250619,0.00030597,2]
[424235631,1780678257000,-622.00866514,0.00030597,2]
[424235620,1780678257000,-416.07870238,0.00030597,2]
[424235613,1780678257000,-170.30248078,0.00030597,2]
[424235619,1780678257000,-371.20028006,0.00030597,2]
[424235617,1780678257000,-745.27983548,0.00030597,2]
[424235615,1780678257000,-613.22321326,0.00030597,2]
[424235618,1780678257000,-402.18308405,0.00030597,2]
[424235706,1780678258000,-1167.46,0.00030796,7]
[424235707,1780678258000,-1390.8,0.000308,7]
[424235708,1780678258000,-1638.72083584,0.0003084,2]
[424235711,1780678258000,-305.59125508,0.00030883,2]
[424235710,1780678258000,-8027.84329922,0.00030862,2]
[424235703,1780678258000,-220260.03238013,0.00030788,7]
[424235702,1780678258000,-1024.91188285,0.00030776,2]
[424235700,1780678258000,-200.0,0.00030743,2]
[424235691,1780678258000,-685.684943,0.00030695,2]
[424235690,1780678258000,-225.00158964,0.00030617,2]
[424235688,1780678258000,-270.0455652,0.00030614,2]
[424235704,1780678258000,-49372.86747099,0.00030788,7]
[424235705,1780678258000,-1183.77,0.00030796,7]
[424235713,1780678258000,-623.0,0.00030909,12]
[424235701,1780678258000,-553.5065089,0.00030763,2]
[424235709,1780678258000,-283.44755526,0.00030859,2]
[424235718,1780678258000,-200.0,0.0003105,2]
[424235719,1780678258000,-200.0,0.0003105,2]
[424235721,1780678258000,-250.0,0.00031066,7]
[424235720,1780678258000,-179.97120458,0.00031057,2]
[424235724,1780678258000,-8027.84329922,0.00031147,2]
[424235722,1780678258000,-1024.91188285,0.00031105,2]
[424235723,1780678258000,-504.8996757,0.00031147,2]
[424235715,1780678258000,-351.13159668,0.00031,5]
[424235714,1780678258000,-8027.84329922,0.00030919,2]
[424235717,1780678258000,-200.0,0.0003105,2]
[424235692,1780678258000,-2085.19,0.000307,7]
[424235716,1780678258000,-8027.84329922,0.00031044,2]
[424235712,1780678258000,-251.11897888,0.00030883,2]
[424235693,1780678258000,-833.57329239,0.00030704,2]
[424235677,1780678258000,-435.46553986,0.00030614,2]
[424235687,1780678258000,-1149.82182577,0.00030614,2]
[424235725,1780678258000,-1192.36523332,0.00031162,2]
[424235672,1780678258000,-691.29548099,0.00030608,2]
[424235669,1780678258000,-243.76851266,0.00030608,2]
[424235665,1780678258000,-549.80210897,0.00030598,2]
[424235666,1780678258000,-620.95615574,0.00030598,2]
[424235673,1780678258000,-637.28053226,0.00030608,2]
[424235667,1780678258000,-193.36365148,0.00030598,2]
[424235674,1780678258000,-614.9256674,0.00030608,2]
[424235668,1780678258000,-456.76290369,0.00030598,2]
[424235671,1780678258000,-206.20332187,0.00030608,2]
[424235670,1780678258000,-150.19828257,0.00030608,2]
[424235676,1780678258000,-814.08103444,0.00030614,2]
[424235684,1780678258000,-687.65297718,0.00030614,2]
[424235689,1780678258000,-432.86758713,0.00030614,2]
[424235675,1780678258000,-684.89347168,0.00030608,2]
[424235686,1780678258000,-751.87280632,0.00030614,2]
[424235678,1780678258000,-802.29509064,0.00030614,2]
[424235679,1780678258000,-464.65568673,0.00030614,2]
[424235680,1780678258000,-624.40206316,0.00030614,2]
[424235681,1780678258000,-784.06328906,0.00030614,2]
[424235682,1780678258000,-588.15555042,0.00030614,2]
[424235683,1780678258000,-623.50138329,0.00030614,2]
[424235695,1780678258000,-504.8996757,0.00030724,2]
[424235694,1780678258000,-179.97120458,0.00030709,2]
[424235696,1780678258000,-270.66587294,0.00030733,2]
[424235697,1780678258000,-151.0,0.00030739,4]
[424235698,1780678258000,-200.0,0.00030743,2]
[424235699,1780678258000,-200.0,0.00030743,2]
[424235685,1780678258000,-807.47866634,0.00030614,2]
[424235727,1780678258000,-448.88368785,0.00031162,2]
[424235787,1780678258000,-150.0,0.000315,2]
[424235729,1780678258000,-883.90598897,0.00031166,2]
[424235753,1780678258000,-864.11935124,0.0003119,2]
[424235754,1780678258000,-796.60066532,0.0003119,2]
[424235765,1780678258000,-200.0,0.00031361,2]
[424235767,1780678258000,-200.0,0.00031361,2]
[424235774,1780678258000,-570.0,0.00031408,30]
[424235776,1780678258000,-152.0,0.00031432,2]
[424235768,1780678258000,-1390.8,0.000314,7]
[424235764,1780678258000,-1024.91188285,0.00031346,2]
[424235775,1780678258000,-3528.58205906,0.0003143,4]
[424235770,1780678258000,-741.0,0.00031408,30]
[424235769,1780678258000,-179.97120458,0.00031405,2]
[424235766,1780678258000,-200.0,0.00031361,2]
[424235772,1780678258000,-1116.0,0.00031408,30]
[424235755,1780678258000,-768.65708425,0.0003119,2]
[424235773,1780678258000,-2358.0,0.00031408,30]
[424235777,1780678258000,-1024.91188285,0.00031434,2]
[424235778,1780678258000,-1045.0,0.00031457,30]
[424235779,1780678258000,-630.0,0.00031457,30]
[424235781,1780678258000,-934.0,0.00031462,30]
[424235782,1780678258000,-1324.0,0.00031462,30]
[424235780,1780678258000,-4124.0,0.00031457,30]
[424235790,1780678258000,-623.0,0.00031515,13]
[424235788,1780678258000,-530.12183621,0.00031507,30]
[424235783,1780678258000,-680.0,0.00031462,30]
[424235789,1780678258000,-1024.91188285,0.00031511,2]
[424235786,1780678258000,-201.02373753,0.000315,2]
[424235785,1780678258000,-3253.0,0.00031462,30]
[424235784,1780678258000,-3251.0,0.00031462,30]
[424235771,1780678258000,-3960.0,0.00031408,30]
[424235763,1780678258000,-2085.19,0.000313,7]
[424235728,1780678258000,-799.13298344,0.00031166,2]
[424235759,1780678258000,-150.717398,0.000312,4]
[424235730,1780678258000,-350.0,0.00031173,2]
[424235733,1780678258000,-835.14391522,0.00031179,2]
[424235731,1780678258000,-350.0,0.00031173,2]
[424235734,1780678258000,-822.86521891,0.00031179,2]
[424235737,1780678258000,-931.59979435,0.00031179,2]
[424235726,1780678258000,-280.03725111,0.00031162,2]
[424235736,1780678258000,-1738.27039197,0.00031179,2]
[424235732,1780678258000,-333.0,0.00031173,2]
[424235752,1780678258000,-929.63712904,0.0003119,2]
[424235735,1780678258000,-943.22592739,0.00031179,2]
[424235749,1780678258000,-862.08393386,0.00031179,2]
[424235740,1780678258000,-1731.28764818,0.00031179,2]
[424235742,1780678258000,-1024.18484321,0.00031179,2]
[424235739,1780678258000,-777.51083143,0.00031179,2]
[424235738,1780678258000,-814.00852279,0.00031179,2]
[424235745,1780678258000,-771.30784472,0.00031179,2]
[424235741,1780678258000,-2003.0729906,0.00031179,2]
[424235760,1780678258000,-1000.0,0.000312,7]
[424235761,1780678258000,-1024.91188285,0.00031241,2]
[424235757,1780678258000,-2051.43196399,0.00031194,2]
[424235758,1780678258000,-1009.34833292,0.00031196,2]
[424235756,1780678258000,-856.1168396,0.0003119,2]
[424235762,1780678258000,-704.16,0.000313,14]
[424235750,1780678258000,-837.26919941,0.0003118,2]
[424235744,1780678258000,-848.10858047,0.00031179,2]
[424235747,1780678258000,-891.3286438,0.00031179,2]
[424235743,1780678258000,-1584.60978886,0.00031179,2]
[424235748,1780678258000,-908.85935861,0.00031179,2]
[424235746,1780678258000,-900.06265583,0.00031179,2]
[424235751,1780678258000,-1351.83,0.0003118,120]
[424235839,1780678259000,-1764.21729944,0.00032,2]
[424235831,1780678259000,-859.49474078,0.00032,120]
[424235834,1780678259000,-323.74083089,0.00032,120]
[424235832,1780678259000,-441.83431517,0.00032,120]
[424235833,1780678259000,-1939.11156993,0.00032,120]
[424235821,1780678259000,-311.41773744,0.00032,120]
[424235830,1780678259000,-1910.38886028,0.00032,120]
[424235823,1780678259000,-1918.20776524,0.00032,120]
[424235824,1780678259000,-306.50544473,0.00032,120]
[424235822,1780678259000,-565.72421072,0.00032,120]
[424235829,1780678259000,-433.47194799,0.00032,120]
[424235835,1780678259000,-240.54220588,0.00032,120]
[424235842,1780678259000,-467.0,0.00032,5]
[424235851,1780678259000,-1357.0,0.00032048,2]
[424235836,1780678259000,-278.51312383,0.00032,120]
[424235837,1780678259000,-356.36293984,0.00032,120]
[424235838,1780678259000,-10977.58549562,0.00032,120]
[424235840,1780678259000,-700.0,0.00032,2]
[424235854,1780678259000,-419.0,0.00032048,2]
[424235844,1780678259000,-160.0,0.00032,120]
[424235855,1780678259000,-933.0,0.00032048,2]
[424235856,1780678259000,-1024.91188285,0.0003205,2]
[424235843,1780678259000,-1390.8,0.00032,7]
[424235845,1780678259000,-160.0,0.00032,10]
[424235846,1780678259000,-500.0,0.00032,2]
[424235847,1780678259000,-1024.91188285,0.00032007,2]
[424235848,1780678259000,-11578.43,0.00032036,30]
[424235820,1780678259000,-317.1473066,0.00032,120]
[424235841,1780678259000,-41448.01030234,0.00032,10]
[424235819,1780678259000,-517.41685059,0.00032,120]
[424235809,1780678259000,-1024.91188285,0.00031915,2]
[424235818,1780678259000,-1457.05381825,0.00032,120]
[424235850,1780678259000,-3553.0,0.00032048,2]
[424235802,1780678259000,-150.0,0.00031716,2]
[424235801,1780678259000,-465.4923843,0.0003171,2]
[424235800,1780678259000,-290.3986294,0.0003171,2]
[424235792,1780678259000,-525.35557267,0.00031624,2]
[424235791,1780678259000,-1024.91188285,0.00031582,2]
[424235793,1780678259000,-150.51999611,0.00031624,2]
[424235797,1780678259000,-1131.35,0.00031693,7]
[424235795,1780678259000,-1024.91188285,0.00031646,2]
[424235794,1780678259000,-150.0,0.00031644,2]
[424235796,1780678259000,-1147.16,0.00031693,7]
[424235798,1780678259000,-1024.91188285,0.00031706,2]
[424235804,1780678259000,-179.97120458,0.00031752,2]
[424235805,1780678259000,-1024.91188285,0.00031763,2]
[424235815,1780678259000,-466.06143726,0.00032,120]
[424235811,1780678259000,-288.447,0.00031917,30]
[424235812,1780678259000,-1024.91188285,0.00031962,2]
[424235813,1780678259000,-2391.71,0.00031977,15]
[424235814,1780678259000,-753.93753881,0.00032,120]
[424235808,1780678259000,-2085.19,0.000319,7]
[424235810,1780678259000,-5291.529,0.00031917,30]
[424235806,1780678259000,-1024.91188285,0.00031816,2]
[424235803,1780678259000,-151.0,0.00031739,4]
[424235807,1780678259000,-1024.91188285,0.00031867,2]
[424235825,1780678259000,-602.88147334,0.00032,120]
[424235817,1780678259000,-223.36346006,0.00032,120]
[424235826,1780678259000,-890.90734959,0.00032,120]
[424235827,1780678259000,-174.3460345,0.00032,120]
[424235816,1780678259000,-1682.15388962,0.00032,120]
[424235828,1780678259000,-1411.14452718,0.00032,120]
[424235799,1780678259000,-1236.48274696,0.0003171,2]
[424235853,1780678259000,-382.0,0.00032048,2]
[424235849,1780678259000,-1060.68718677,0.00032039,2]
[424235891,1780678259000,-1024.91188285,0.00032319,2]
[424235894,1780678259000,-318.383922,0.00032329,7]
[424235888,1780678259000,-438.2587081,0.00032258,2]
[424235895,1780678259000,-318.383922,0.00032329,7]
[424235889,1780678259000,-1024.91188285,0.00032283,2]
[424235890,1780678259000,-911.03436574,0.000323,2]
[424235905,1780678259000,-1024.91188285,0.00032387,2]
[424235904,1780678259000,-1024.91188285,0.00032353,2]
[424235900,1780678259000,-318.383922,0.00032329,7]
[424235901,1780678259000,-318.383922,0.00032329,7]
[424235896,1780678259000,-318.383922,0.00032329,7]
[424235898,1780678259000,-318.383922,0.00032329,7]
[424235897,1780678259000,-318.383922,0.00032329,7]
[424235885,1780678259000,-644.79446245,0.00032255,2]
[424235903,1780678259000,-318.383922,0.00032329,7]
[424235906,1780678259000,-350.0,0.00032395,24]
[424235907,1780678259000,-741.0,0.00032408,30]
[424235908,1780678259000,-3960.0,0.00032408,30]
[424235909,1780678259000,-1116.0,0.00032408,30]
[424235910,1780678259000,-2358.0,0.00032408,30]
[424235913,1780678259000,-152.0,0.00032443,120]
[424235911,1780678259000,-570.0,0.00032408,30]
[424235912,1780678259000,-1024.91188285,0.00032421,2]
[424235914,1780678259000,-179.97120458,0.00032448,2]
[424235915,1780678259000,-1024.91188285,0.00032453,2]
[424235916,1780678259000,-1045.0,0.00032457,30]
[424235917,1780678259000,-630.0,0.00032457,30]
[424235852,1780678259000,-1273.0,0.00032048,2]
[424235902,1780678259000,-318.383922,0.00032329,7]